[Event "*** SCC Grand Prix: Titled Tuesday Blitz"]
[Site "Chess.com"]
[Date "2020.07.21"]
[Round "1"]
[White "MathiasWomacka"]
[Black "Andreikka"]
[Result "0-1"]
[WhiteElo "2442"]
[BlackElo "2906"]
[TimeControl "180+1"]
[EndTime "10:06:37 PDT"]
[Termination "Andreikka won by resignation"]

1. e4 {[%clk 0:02:53.9]} 1... e5 {[%clk 0:02:58.2]} 2. Nf3 {[%clk 0:02:53.4]}
2... Nc6 {[%clk 0:02:57.8]} 3. Bb5 {[%clk 0:02:52.4]} 3... a6 {[%clk 0:02:57.2]}
4. Bxc6 {[%clk 0:02:52.4]} 4... dxc6 {[%clk 0:02:56.9]} 5. O-O {[%clk
0:02:52.9]} 5... Qf6 {[%clk 0:02:57.4]} 6. d4 {[%clk 0:02:52.3]} 6... exd4
{[%clk 0:02:57.4]} 7. Bg5 {[%clk 0:02:51.9]} 7... Qd6 {[%clk 0:02:56.8]} 8. Nxd4
{[%clk 0:02:51.7]} 8... Be7 {[%clk 0:02:56.3]} 9. Bxe7 {[%clk 0:02:50.7]} 9...
Nxe7 {[%clk 0:02:57.2]} 10. Nc3 {[%clk 0:02:50.5]} 10... Bd7 {[%clk 0:02:55.9]}
11. Qd2 {[%clk 0:02:47.9]} 11... c5 {[%clk 0:02:52.7]} 12. Nb3 {[%clk
0:02:45.1]} 12... Qxd2 {[%clk 0:02:51.7]} 13. Nxd2 {[%clk 0:02:46]} 13... O-O-O
{[%clk 0:02:51.8]} 14. Nc4 {[%clk 0:02:21.5]} 14... Be6 {[%clk 0:02:50.7]} 15.
Ne3 {[%clk 0:02:18.2]} 15... Nc6 {[%clk 0:02:47.7]} 16. Rad1 {[%clk 0:02:15.7]}
16... Nd4 {[%clk 0:02:41]} 17. Ncd5 {[%clk 0:02:08.8]} 17... Rhe8 {[%clk
0:02:36.4]} 18. f3 {[%clk 0:02:06.7]} 18... f5 {[%clk 0:02:32.6]} 19. c3 {[%clk
0:01:58.4]} 19... Bxd5 {[%clk 0:02:29.2]} 20. Nxd5 {[%clk 0:01:51.9]} 20... fxe4
{[%clk 0:02:28.1]} 21. fxe4 {[%clk 0:01:39.8]} 21... Rxe4 {[%clk 0:02:26.8]} 22.
cxd4 {[%clk 0:01:31.6]} 22... Rxd5 {[%clk 0:02:26.4]} 23. Rf8+ {[%clk
0:01:23.8]} 23... Kd7 {[%clk 0:02:25.6]} 24. Rf7+ {[%clk 0:01:23.7]} 24... Re7
{[%clk 0:02:26]} 25. Rxe7+ {[%clk 0:01:22.8]} 25... Kxe7 {[%clk 0:02:26.9]} 26.
Re1+ {[%clk 0:01:23.2]} 26... Kd7 {[%clk 0:02:23.9]} 27. dxc5 {[%clk 0:01:23.1]}
27... Rxc5 {[%clk 0:02:17.1]} 28. Re2 {[%clk 0:01:21.4]} 28... a5 {[%clk
0:02:13.9]} 29. Kf2 {[%clk 0:01:16.7]} 29... Kd6 {[%clk 0:02:12.9]} 30. Kf3
{[%clk 0:01:16.7]} 30... Re5 {[%clk 0:02:10.4]} 31. Rd2+ {[%clk 0:01:13.6]}
31... Rd5 {[%clk 0:02:10.1]} 32. Re2 {[%clk 0:01:13.5]} 32... b5 {[%clk
0:02:06.8]} 33. Kf4 {[%clk 0:01:09.5]} 33... a4 {[%clk 0:02:05.7]} 34. h4 {[%clk
0:01:04.1]} 34... c5 {[%clk 0:01:54.5]} 35. Re8 {[%clk 0:00:57.4]} 35... c4
{[%clk 0:01:46.5]} 36. g4 {[%clk 0:00:54.5]} 36... Kc5 {[%clk 0:01:45.8]} 37. h5
{[%clk 0:00:48.9]} 37... a3 {[%clk 0:01:34.3]} 38. bxa3 {[%clk 0:00:47.6]} 38...
c3 {[%clk 0:01:34.3]} 39. Ke4 {[%clk 0:00:40.6]} 39... Rd4+ {[%clk 0:01:29]} 40.
Ke3 {[%clk 0:00:40.1]} 40... Rxg4 {[%clk 0:01:19.1]} 41. Rc8+ {[%clk 0:00:39]}
41... Kb6 {[%clk 0:01:18.8]} 42. Rxc3 {[%clk 0:00:34.5]} 42... Rh4 {[%clk
0:01:09.7]} 43. a4 {[%clk 0:00:27.1]} 43... Rxh5 {[%clk 0:01:08]} 44. axb5
{[%clk 0:00:26.4]} 44... Rh3+ {[%clk 0:01:07.5]} 45. Kd4 {[%clk 0:00:25.9]}
45... Rxc3 {[%clk 0:01:08.4]} 46. Kxc3 {[%clk 0:00:26.4]} 46... Kxb5 {[%clk
0:01:09]} 47. Kd4 {[%clk 0:00:26.7]} 47... Kb4 {[%clk 0:01:08]} 0-1

[Event "*** SCC Grand Prix: Titled Tuesday Blitz"]
[Site "Chess.com"]
[Date "2020.07.21"]
[Round "1"]
[White "tan275"]
[Black "blitzking1729"]
[Result "0-1"]
[WhiteElo "2243"]
[BlackElo "2593"]
[TimeControl "180+1"]
[EndTime "10:06:39 PDT"]
[Termination "blitzking1729 won by resignation"]

1. d4 {[%clk 0:03:00.5]} 1... d6 {[%clk 0:02:58.1]} 2. c4 {[%clk 0:03:01.1]}
2... e5 {[%clk 0:02:57.1]} 3. d5 {[%clk 0:03:00.4]} 3... g6 {[%clk 0:02:56.6]}
4. Nc3 {[%clk 0:03:00.7]} 4... Bg7 {[%clk 0:02:56.1]} 5. e4 {[%clk 0:03:01]}
5... Ne7 {[%clk 0:02:55.4]} 6. h4 {[%clk 0:02:57.7]} 6... h6 {[%clk 0:02:53.5]}
7. Nf3 {[%clk 0:02:53.9]} 7... O-O {[%clk 0:02:51.5]} 8. Be3 {[%clk 0:02:54.3]}
8... Bg4 {[%clk 0:02:50.5]} 9. Qd2 {[%clk 0:02:53.1]} 9... Kh7 {[%clk
0:02:43.1]} 10. Nh2 {[%clk 0:02:51.9]} 10... Bc8 {[%clk 0:02:39.8]} 11. Bd3
{[%clk 0:02:46.2]} 11... f5 {[%clk 0:02:39.1]} 12. exf5 {[%clk 0:02:45.2]} 12...
gxf5 {[%clk 0:02:37]} 13. O-O-O {[%clk 0:02:38.2]} 13... Na6 {[%clk 0:02:28.8]}
14. g4 {[%clk 0:02:36.3]} 14... Nc5 {[%clk 0:02:19.5]} 15. Bc2 {[%clk
0:02:32.5]} 15... e4 {[%clk 0:02:11.2]} 16. Bd4 {[%clk 0:02:20.2]} 16... Bxd4
{[%clk 0:02:06.2]} 17. Qxd4 {[%clk 0:02:21.1]} 17... Ng6 {[%clk 0:02:01.1]} 18.
gxf5 {[%clk 0:02:19.4]} 18... Bxf5 {[%clk 0:01:59.9]} 19. Nxe4 {[%clk
0:02:09.1]} 19... Qxh4 {[%clk 0:01:48.7]} 20. Nf3 {[%clk 0:01:53.6]} 20... Qf4+
{[%clk 0:01:46.9]} 21. Kb1 {[%clk 0:01:40.6]} 21... Bxe4 {[%clk 0:01:40.1]} 22.
Ng5+ {[%clk 0:01:10.6]} 22... Qxg5 {[%clk 0:01:37.6]} 23. Bxe4 {[%clk
0:01:11.1]} 23... Nxe4 {[%clk 0:01:37.4]} 24. Qxe4 {[%clk 0:01:10.9]} 24... Qf5
{[%clk 0:01:37.4]} 25. Qxf5 {[%clk 0:01:07.5]} 25... Rxf5 {[%clk 0:01:38.3]} 26.
Rh2 {[%clk 0:01:06.2]} 26... Raf8 {[%clk 0:01:24.6]} 27. Rdh1 {[%clk 0:01:04.4]}
27... h5 {[%clk 0:01:24.2]} 28. Rxh5+ {[%clk 0:00:56.9]} 28... Rxh5 {[%clk
0:01:23.4]} 29. Rxh5+ {[%clk 0:00:57.8]} 29... Kg7 {[%clk 0:01:23.8]} 30. Rh2
{[%clk 0:00:54.7]} 30... Nf4 {[%clk 0:01:17.7]} 31. Kc2 {[%clk 0:00:51]} 31...
Rh8 {[%clk 0:01:17]} 32. Rxh8 {[%clk 0:00:46.9]} 32... Kxh8 {[%clk 0:01:16.6]}
33. Kd2 {[%clk 0:00:47.4]} 33... Kg7 {[%clk 0:01:15.5]} 34. Ke3 {[%clk
0:00:47.8]} 34... Ng6 {[%clk 0:01:15.4]} 35. Ke4 {[%clk 0:00:44.7]} 35... Kf6
{[%clk 0:01:15.3]} 36. f4 {[%clk 0:00:45.6]} 36... b6 {[%clk 0:01:10.6]} 37. a3
{[%clk 0:00:35.5]} 37... a5 {[%clk 0:01:09.9]} 38. b4 {[%clk 0:00:35.1]} 38...
axb4 {[%clk 0:01:09.8]} 39. axb4 {[%clk 0:00:36]} 39... Nf8 {[%clk 0:01:05.9]}
40. f5 {[%clk 0:00:30.6]} 40... Nd7 {[%clk 0:01:05]} 41. Kd4 {[%clk 0:00:19.7]}
41... Kxf5 {[%clk 0:01:04.1]} 42. c5 {[%clk 0:00:17.8]} 0-1

[Event "*** SCC Grand Prix: Titled Tuesday Blitz"]
[Site "Chess.com"]
[Date "2020.07.21"]
[Round "1"]
[White "politeplayer"]
[Black "Chess_Boxer123"]
[Result "0-1"]
[WhiteElo "2213"]
[BlackElo "2570"]
[TimeControl "180+1"]
[EndTime "10:06:40 PDT"]
[Termination "Chess_Boxer123 won by resignation"]

1. e4 {[%clk 0:02:59.3]} 1... c6 {[%clk 0:02:56.6]} 2. Nf3 {[%clk 0:02:58.5]}
2... d5 {[%clk 0:02:55.8]} 3. exd5 {[%clk 0:02:58.9]} 3... cxd5 {[%clk
0:02:55.8]} 4. d4 {[%clk 0:02:59.4]} 4... Nf6 {[%clk 0:02:54.3]} 5. c4 {[%clk
0:02:59.8]} 5... Nc6 {[%clk 0:02:53.1]} 6. Nc3 {[%clk 0:03:00]} 6... e6 {[%clk
0:02:46.2]} 7. a3 {[%clk 0:02:58.1]} 7... Be7 {[%clk 0:02:44]} 8. cxd5 {[%clk
0:02:57.9]} 8... Nxd5 {[%clk 0:02:42.4]} 9. Bd3 {[%clk 0:02:57.7]} 9... O-O
{[%clk 0:02:39.9]} 10. O-O {[%clk 0:02:55.8]} 10... Bf6 {[%clk 0:02:35.5]} 11.
Bc2 {[%clk 0:02:49.8]} 11... b6 {[%clk 0:02:17.5]} 12. Nxd5 {[%clk 0:02:45.2]}
12... Qxd5 {[%clk 0:02:14.9]} 13. Re1 {[%clk 0:02:39.7]} 13... Bb7 {[%clk
0:02:11]} 14. Be4 {[%clk 0:02:30.3]} 14... Qd6 {[%clk 0:02:08.6]} 15. Bg5 {[%clk
0:01:44.9]} 15... Bxg5 {[%clk 0:01:59.3]} 16. Nxg5 {[%clk 0:01:16.2]} 16... h6
{[%clk 0:01:56.6]} 17. Nh7 {[%clk 0:01:04.8]} 17... Rfd8 {[%clk 0:01:55.4]} 18.
Qg4 {[%clk 0:00:56.7]} 18... Qxd4 {[%clk 0:01:51.9]} 19. Rad1 {[%clk 0:00:54]}
19... Qxb2 {[%clk 0:01:51.8]} 20. Rb1 {[%clk 0:00:35.5]} 20... Qxa3 {[%clk
0:01:10.7]} 21. Nf6+ {[%clk 0:00:32.9]} 21... Kh8 {[%clk 0:01:10.8]} 22. Nh5
{[%clk 0:00:31.3]} 22... Qf8 {[%clk 0:01:08.5]} 23. Re3 {[%clk 0:00:28.3]} 23...
Ne5 {[%clk 0:01:05.3]} 24. Qh4 {[%clk 0:00:24]} 24... Bxe4 {[%clk 0:01:03.1]}
25. Qxe4 {[%clk 0:00:20.7]} 25... Ng6 {[%clk 0:01:01.9]} 26. Rh3 {[%clk
0:00:17.7]} 26... Kg8 {[%clk 0:01:02.4]} 27. f4 {[%clk 0:00:15.9]} 27... Rac8
{[%clk 0:01:00.3]} 28. f5 {[%clk 0:00:14.2]} 28... Qc5+ {[%clk 0:01:00.6]} 29.
Re3 {[%clk 0:00:08.9]} 29... exf5 {[%clk 0:00:59.2]} 30. Qf3 {[%clk 0:00:05.7]}
30... f4 {[%clk 0:00:56.3]} 31. Nxf4 {[%clk 0:00:04.7]} 31... Nxf4 {[%clk
0:00:56.8]} 32. Qxf4 {[%clk 0:00:04.9]} 32... Re8 {[%clk 0:00:57.4]} 33. Re1
{[%clk 0:00:04]} 33... Rxe3 {[%clk 0:00:57.5]} 34. Rxe3 {[%clk 0:00:03.3]} 34...
Re8 {[%clk 0:00:57.2]} 35. Kf2 {[%clk 0:00:02.9]} 35... Qxe3+ {[%clk 0:00:57.3]}
36. Qxe3 {[%clk 0:00:03.3]} 36... Rxe3 {[%clk 0:00:58.2]} 37. Kxe3 {[%clk
0:00:03.8]} 37... a5 {[%clk 0:00:59.1]} 0-1

[Event "*** SCC Grand Prix: Titled Tuesday Blitz"]
[Site "Chess.com"]
[Date "2020.07.21"]
[Round "1"]
[White "Kirill_Klukin"]
[Black "Trickov"]
[Result "1-0"]
[WhiteElo "2715"]
[BlackElo "2358"]
[TimeControl "180+1"]
[EndTime "10:06:43 PDT"]
[Termination "Kirill_Klukin won on time"]

1. d4 {[%clk 0:02:59.5]} 1... d5 {[%clk 0:02:59.3]} 2. Nf3 {[%clk 0:02:59.5]}
2... Nf6 {[%clk 0:02:58.6]} 3. c4 {[%clk 0:02:59.6]} 3... c6 {[%clk 0:02:58.4]}
4. Nbd2 {[%clk 0:02:59.3]} 4... Bf5 {[%clk 0:02:49.6]} 5. Nh4 {[%clk 0:02:59.2]}
5... Bc8 {[%clk 0:02:47.2]} 6. e3 {[%clk 0:02:59.1]} 6... Nbd7 {[%clk
0:02:43.6]} 7. Bd3 {[%clk 0:02:59]} 7... e5 {[%clk 0:02:36.9]} 8. cxd5 {[%clk
0:02:56.3]} 8... Nxd5 {[%clk 0:02:33]} 9. Nhf3 {[%clk 0:02:55.2]} 9... exd4
{[%clk 0:02:30.9]} 10. Nxd4 {[%clk 0:02:54.7]} 10... Ne5 {[%clk 0:02:30.1]} 11.
Be2 {[%clk 0:02:50]} 11... Be7 {[%clk 0:02:28.4]} 12. O-O {[%clk 0:02:49.8]}
12... O-O {[%clk 0:02:26.9]} 13. Nc4 {[%clk 0:02:50]} 13... Bf6 {[%clk
0:02:25.4]} 14. Bd2 {[%clk 0:02:45.9]} 14... Nxc4 {[%clk 0:02:21.4]} 15. Bxc4
{[%clk 0:02:46.8]} 15... Nb6 {[%clk 0:02:21.6]} 16. Bb3 {[%clk 0:02:41.8]} 16...
Bxd4 {[%clk 0:02:20.7]} 17. exd4 {[%clk 0:02:40.4]} 17... Qxd4 {[%clk
0:02:20.7]} 18. Qc2 {[%clk 0:02:36.3]} 18... Bf5 {[%clk 0:02:14.6]} 19. Qc1
{[%clk 0:02:28.2]} 19... Nd5 {[%clk 0:02:00.9]} 20. Bxd5 {[%clk 0:02:02.8]}
20... Qxd5 {[%clk 0:01:55.7]} 21. Bc3 {[%clk 0:02:03]} 21... Rad8 {[%clk
0:01:46.3]} 22. Qf4 {[%clk 0:02:02.5]} 22... Bg6 {[%clk 0:01:37]} 23. h3 {[%clk
0:02:02.5]} 23... f6 {[%clk 0:01:32.7]} 24. a3 {[%clk 0:02:02]} 24... Rfe8
{[%clk 0:01:27.2]} 25. Rfe1 {[%clk 0:02:02.2]} 25... Be4 {[%clk 0:01:12]} 26.
Qg3 {[%clk 0:02:01.7]} 26... Bg6 {[%clk 0:01:08.6]} 27. Qc7 {[%clk 0:01:57.1]}
27... Qd7 {[%clk 0:01:03.7]} 28. Qg3 {[%clk 0:01:48.3]} 28... Rxe1+ {[%clk
0:00:59.5]} 29. Rxe1 {[%clk 0:01:47.9]} 29... Re8 {[%clk 0:00:58.3]} 30. Rc1
{[%clk 0:01:47.9]} 30... c5 {[%clk 0:00:53.6]} 31. Qf4 {[%clk 0:01:43.8]} 31...
b6 {[%clk 0:00:52.5]} 32. Qf3 {[%clk 0:01:38]} 32... Be4 {[%clk 0:00:50.7]} 33.
Qg3 {[%clk 0:01:37.7]} 33... Bg6 {[%clk 0:00:42]} 34. h4 {[%clk 0:01:38]} 34...
Kh8 {[%clk 0:00:28]} 35. Qf3 {[%clk 0:01:35.8]} 35... Be4 {[%clk 0:00:26.6]} 36.
Qf4 {[%clk 0:01:36.1]} 36... Bc6 {[%clk 0:00:24.9]} 37. h5 {[%clk 0:01:31.8]}
37... Qd5 {[%clk 0:00:23]} 38. Qg4 {[%clk 0:01:32.2]} 38... Qe4 {[%clk
0:00:18.8]} 39. Qg3 {[%clk 0:01:31.4]} 39... h6 {[%clk 0:00:17.7]} 40. Rd1
{[%clk 0:01:30.9]} 40... Kh7 {[%clk 0:00:13.8]} 41. Rd6 {[%clk 0:01:29.7]} 41...
Qb1+ {[%clk 0:00:10.5]} 42. Kh2 {[%clk 0:01:29.9]} 42... Qe4 {[%clk 0:00:10.5]}
43. Qg6+ {[%clk 0:01:30]} 43... Kg8 {[%clk 0:00:07.7]} 44. Rxf6 {[%clk
0:01:29.4]} 44... Qxg6 {[%clk 0:00:05.9]} 45. Rxg6 {[%clk 0:01:30.3]} 1-0

[Event "*** SCC Grand Prix: Titled Tuesday Blitz"]
[Site "Chess.com"]
[Date "2020.07.21"]
[Round "1"]
[White "Haykoooo0o"]
[Black "BulletMercenary"]
[Result "1-0"]
[WhiteElo "2517"]
[BlackElo "2107"]
[TimeControl "180+1"]
[EndTime "10:06:43 PDT"]
[Termination "Haykoooo0o won by resignation"]

1. e4 {[%clk 0:02:59.9]} 1... e6 {[%clk 0:02:57.7]} 2. d4 {[%clk 0:03:00]} 2...
d5 {[%clk 0:02:56.2]} 3. Nc3 {[%clk 0:02:59.9]} 3... Bb4 {[%clk 0:02:55.5]} 4.
e5 {[%clk 0:02:57.4]} 4... c5 {[%clk 0:02:50.7]} 5. dxc5 {[%clk 0:02:57.4]} 5...
Ne7 {[%clk 0:02:44.7]} 6. Nf3 {[%clk 0:02:56.7]} 6... Nd7 {[%clk 0:02:14.2]} 7.
Bd3 {[%clk 0:02:54.5]} 7... Nxc5 {[%clk 0:02:13.8]} 8. O-O {[%clk 0:02:54.2]}
8... Bxc3 {[%clk 0:02:11.9]} 9. bxc3 {[%clk 0:02:53.6]} 9... Nxd3 {[%clk
0:02:11.8]} 10. Qxd3 {[%clk 0:02:54.4]} 10... O-O {[%clk 0:02:10.1]} 11. Bg5
{[%clk 0:02:50.1]} 11... h6 {[%clk 0:02:09.7]} 12. Bh4 {[%clk 0:02:50]} 12...
Qc7 {[%clk 0:02:09.3]} 13. Rfe1 {[%clk 0:02:43.4]} 13... Nf5 {[%clk 0:02:07.6]}
14. Bg3 {[%clk 0:02:41.5]} 14... Nxg3 {[%clk 0:02:07.2]} 15. hxg3 {[%clk
0:02:40.7]} 15... Bd7 {[%clk 0:02:02.3]} 16. g4 {[%clk 0:02:34.9]} 16... Rfc8
{[%clk 0:02:01.4]} 17. Re3 {[%clk 0:02:22.1]} 17... Qc4 {[%clk 0:01:54.7]} 18.
Nd4 {[%clk 0:02:15.3]} 18... Qxd3 {[%clk 0:01:52.1]} 19. Rxd3 {[%clk 0:02:16.2]}
19... Rc4 {[%clk 0:01:47]} 20. Rb1 {[%clk 0:02:15.6]} 20... b6 {[%clk
0:01:46.8]} 21. Kf1 {[%clk 0:02:14.1]} 21... Rac8 {[%clk 0:01:44.7]} 22. Rb3
{[%clk 0:02:13.4]} 22... Ba4 {[%clk 0:01:41.3]} 23. Ra3 {[%clk 0:02:12]} 23...
Kf8 {[%clk 0:01:18.2]} 24. Ke1 {[%clk 0:02:11.8]} 24... Ke7 {[%clk 0:01:17.6]}
25. Kd2 {[%clk 0:02:11.5]} 25... f6 {[%clk 0:00:58.7]} 26. exf6+ {[%clk
0:02:10.4]} 26... gxf6 {[%clk 0:00:58.3]} 27. f3 {[%clk 0:02:10.2]} 27... Kf7
{[%clk 0:00:45.4]} 28. Ne2 {[%clk 0:02:04.7]} 28... Rh8 {[%clk 0:00:41.4]} 29.
Rd4 {[%clk 0:02:04.2]} 29... b5 {[%clk 0:00:38.5]} 30. Nc1 {[%clk 0:01:42.4]}
30... h5 {[%clk 0:00:31.8]} 31. gxh5 {[%clk 0:01:39.1]} 31... Rxh5 {[%clk
0:00:31.3]} 32. Nd3 {[%clk 0:01:38.1]} 32... Rh2 {[%clk 0:00:27.2]} 33. Ne1
{[%clk 0:01:32.1]} 33... e5 {[%clk 0:00:23.3]} 34. Rxd5 {[%clk 0:01:29.5]} 34...
Ke6 {[%clk 0:00:20.3]} 35. Rd8 {[%clk 0:01:29.3]} 35... f5 {[%clk 0:00:17.6]}
36. Rg8 {[%clk 0:01:29]} 36... Kf6 {[%clk 0:00:13.7]} 37. Nd3 {[%clk 0:01:26.9]}
37... e4 {[%clk 0:00:11]} 38. fxe4 {[%clk 0:01:22.1]} 38... fxe4 {[%clk
0:00:11.9]} 39. Nb2 {[%clk 0:01:20.7]} 39... Rc6 {[%clk 0:00:02]} 40. Nxa4
{[%clk 0:01:20.8]} 40... Ra6 {[%clk 0:00:01.9]} 41. Rb3 {[%clk 0:01:20.2]} 41...
bxa4 {[%clk 0:00:01.7]} 42. Rb4 {[%clk 0:01:17.4]} 42... Rd6+ {[%clk 0:00:01.9]}
43. Ke3 {[%clk 0:01:16.7]} 43... Rc6 {[%clk 0:00:02.1]} 44. c4 {[%clk
0:01:16.4]} 44... Rh5 {[%clk 0:00:01.3]} 45. Kxe4 {[%clk 0:01:13.6]} 45... Rhc5
{[%clk 0:00:01.8]} 46. Kd4 {[%clk 0:01:13]} 46... a5 {[%clk 0:00:02.2]} 47. Rxa4
{[%clk 0:01:12]} 47... Rf5 {[%clk 0:00:02.9]} 48. Rf8+ {[%clk 0:01:11.5]} 1-0

[Event "*** SCC Grand Prix: Titled Tuesday Blitz"]
[Site "Chess.com"]
[Date "2020.07.21"]
[Round "1"]
[White "SidArun"]
[Black "Munkhzul_Turmunkh"]
[Result "0-1"]
[WhiteElo "2257"]
[BlackElo "2600"]
[TimeControl "180+1"]
[EndTime "10:06:46 PDT"]
[Termination "Munkhzul_Turmunkh won by resignation"]

1. d4 {[%clk 0:03:00.9]} 1... Nf6 {[%clk 0:02:59.1]} 2. Bg5 {[%clk 0:03:00.4]}
2... d5 {[%clk 0:02:56.9]} 3. Bxf6 {[%clk 0:02:59.9]} 3... gxf6 {[%clk
0:02:53.2]} 4. e3 {[%clk 0:03:00]} 4... c5 {[%clk 0:02:51.8]} 5. Nf3 {[%clk
0:02:56.3]} 5... Nc6 {[%clk 0:02:43.7]} 6. dxc5 {[%clk 0:02:54.8]} 6... e6
{[%clk 0:02:34.6]} 7. c4 {[%clk 0:02:54.3]} 7... Bxc5 {[%clk 0:02:19.3]} 8. cxd5
{[%clk 0:02:52.3]} 8... Qxd5 {[%clk 0:02:13.2]} 9. Qxd5 {[%clk 0:02:51.3]} 9...
exd5 {[%clk 0:02:14.1]} 10. Nc3 {[%clk 0:02:51.3]} 10... Be6 {[%clk 0:02:11.2]}
11. O-O-O {[%clk 0:02:34.6]} 11... O-O-O {[%clk 0:02:04.9]} 12. Nd4 {[%clk
0:02:31.9]} 12... Nxd4 {[%clk 0:02:00.3]} 13. exd4 {[%clk 0:02:31.7]} 13... Bb6
{[%clk 0:01:57.5]} 14. Be2 {[%clk 0:02:27.8]} 14... Rhe8 {[%clk 0:01:49.2]} 15.
Bf3 {[%clk 0:02:27.5]} 15... Kb8 {[%clk 0:01:44.1]} 16. Rhe1 {[%clk 0:02:20]}
16... Rg8 {[%clk 0:01:33.1]} 17. a3 {[%clk 0:02:05.4]} 17... Bg4 {[%clk
0:01:19.2]} 18. Re3 {[%clk 0:02:02.6]} 18... Bxf3 {[%clk 0:01:17.4]} 19. Rxf3
{[%clk 0:02:02.8]} 19... Rxg2 {[%clk 0:01:13.4]} 20. Rxf6 {[%clk 0:02:02.4]}
20... Rxh2 {[%clk 0:01:09.5]} 21. Rxf7 {[%clk 0:02:02.4]} 21... Rh4 {[%clk
0:01:05.8]} 22. f4 {[%clk 0:01:49.3]} 22... Bc7 {[%clk 0:00:58.9]} 23. Rf1
{[%clk 0:01:46.3]} 23... h5 {[%clk 0:00:54]} 24. Rf5 {[%clk 0:01:45.8]} 24...
Bb6 {[%clk 0:00:46.8]} 25. Nxd5 {[%clk 0:01:42.8]} 25... Bxd4 {[%clk 0:00:44.1]}
26. Rd1 {[%clk 0:01:41.3]} 26... Bg7 {[%clk 0:00:35.7]} 27. Nf6 {[%clk 0:01:10]}
27... Rxd1+ {[%clk 0:00:30.7]} 28. Kxd1 {[%clk 0:01:09.9]} 28... Rh1+ {[%clk
0:00:28.5]} 29. Kc2 {[%clk 0:01:06]} 29... h4 {[%clk 0:00:24.5]} 30. Ne8 {[%clk
0:01:04.9]} 30... Rh2+ {[%clk 0:00:20]} 31. Kd3 {[%clk 0:01:03.8]} 31... Bxb2
{[%clk 0:00:19.1]} 32. Rd5 {[%clk 0:00:52.7]} 32... a6 {[%clk 0:00:13.8]} 33. a4
{[%clk 0:00:50.5]} 33... h3 {[%clk 0:00:13.6]} 34. Rh5 {[%clk 0:00:48.3]} 34...
Rh1 {[%clk 0:00:13.6]} 35. f5 {[%clk 0:00:45.5]} 35... h2 {[%clk 0:00:13.9]} 36.
f6 {[%clk 0:00:45]} 36... Rd1+ {[%clk 0:00:12]} 37. Ke2 {[%clk 0:00:41.9]} 37...
h1=Q {[%clk 0:00:12.2]} 38. Rxh1 {[%clk 0:00:41.5]} 38... Rxh1 {[%clk
0:00:13.1]} 39. f7 {[%clk 0:00:41.3]} 39... Ba3 {[%clk 0:00:13.2]} 0-1

[Event "*** SCC Grand Prix: Titled Tuesday Blitz"]
[Site "Chess.com"]
[Date "2020.07.21"]
[Round "1"]
[White "jb2mix"]
[Black "korkmaz16"]
[Result "1-0"]
[WhiteElo "2672"]
[BlackElo "2329"]
[TimeControl "180+1"]
[EndTime "10:06:50 PDT"]
[Termination "jb2mix won by resignation"]

1. e4 {[%clk 0:02:59.6]} 1... d5 {[%clk 0:02:56.5]} 2. exd5 {[%clk 0:02:59.5]}
2... Nf6 {[%clk 0:02:56.2]} 3. d4 {[%clk 0:03:00.3]} 3... Bg4 {[%clk 0:02:55.4]}
4. Qd3 {[%clk 0:02:59.4]} 4... Qxd5 {[%clk 0:02:47.1]} 5. Nc3 {[%clk 0:02:59.3]}
5... Qd7 {[%clk 0:02:46.5]} 6. Bf4 {[%clk 0:02:58.3]} 6... Nc6 {[%clk
0:02:43.2]} 7. Nge2 {[%clk 0:02:32.1]} 7... Bf5 {[%clk 0:02:39.5]} 8. Qd2 {[%clk
0:02:25.8]} 8... Nb4 {[%clk 0:02:29.6]} 9. Rc1 {[%clk 0:02:25.3]} 9... O-O-O
{[%clk 0:02:14.9]} 10. f3 {[%clk 0:02:00.4]} 10... Nh5 {[%clk 0:02:03.8]} 11.
Be3 {[%clk 0:01:55.6]} 11... e5 {[%clk 0:02:01.2]} 12. g4 {[%clk 0:01:53]} 12...
Bxg4 {[%clk 0:01:54.1]} 13. fxg4 {[%clk 0:01:52.6]} 13... Qxg4 {[%clk
0:01:54.9]} 14. h4 {[%clk 0:01:34.2]} 14... f5 {[%clk 0:01:23.2]} 15. Bg5 {[%clk
0:01:15.9]} 15... Rd7 {[%clk 0:01:11.9]} 16. Qe3 {[%clk 0:01:12.4]} 16... Be7
{[%clk 0:00:52.5]} 17. Bh3 {[%clk 0:01:11.8]} 17... Bxg5 {[%clk 0:00:46.7]} 18.
Qxg5 {[%clk 0:00:51.8]} 18... Qxg5 {[%clk 0:00:40]} 19. hxg5 {[%clk 0:00:45.4]}
19... g6 {[%clk 0:00:39]} 20. dxe5 {[%clk 0:00:45.7]} 20... Ng7 {[%clk
0:00:35.8]} 21. Kf2 {[%clk 0:00:30.1]} 21... Nc6 {[%clk 0:00:33.3]} 22. Rcd1
{[%clk 0:00:29.2]} 22... Re7 {[%clk 0:00:33.2]} 23. Nf4 {[%clk 0:00:28.2]} 23...
Rxe5 {[%clk 0:00:27.8]} 24. Ncd5 {[%clk 0:00:29.1]} 24... Rhe8 {[%clk
0:00:22.4]} 25. Nf6 {[%clk 0:00:28.2]} 25... R8e7 {[%clk 0:00:21.9]} 26. Rhe1
{[%clk 0:00:27]} 26... Rxe1 {[%clk 0:00:18.4]} 27. Rxe1 {[%clk 0:00:27.9]} 27...
Rxe1 {[%clk 0:00:15.1]} 28. Kxe1 {[%clk 0:00:28.8]} 28... Nd4 {[%clk 0:00:15.6]}
29. Nxh7 {[%clk 0:00:23]} 29... Nf3+ {[%clk 0:00:15.8]} 30. Kf2 {[%clk
0:00:23.2]} 30... Nxg5 {[%clk 0:00:16.7]} 31. Nxg5 {[%clk 0:00:23.2]} 1-0

[Event "*** SCC Grand Prix: Titled Tuesday Blitz"]
[Site "Chess.com"]
[Date "2020.07.21"]
[Round "1"]
[White "penguingm1"]
[Black "r31415"]
[Result "1-0"]
[WhiteElo "2938"]
[BlackElo "2446"]
[TimeControl "180+1"]
[EndTime "10:06:53 PDT"]
[Termination "penguingm1 won by resignation"]

1. d4 {[%clk 0:02:58.4]} 1... d6 {[%clk 0:02:56.4]} 2. c4 {[%clk 0:02:55.9]}
2... f5 {[%clk 0:02:56.2]} 3. Nf3 {[%clk 0:02:55.4]} 3... Nf6 {[%clk 0:02:56.6]}
4. Nc3 {[%clk 0:02:55.9]} 4... g6 {[%clk 0:02:57.2]} 5. Bf4 {[%clk 0:02:56.6]}
5... Bg7 {[%clk 0:02:57.7]} 6. e3 {[%clk 0:02:57.2]} 6... O-O {[%clk 0:02:58.2]}
7. c5 {[%clk 0:02:57.6]} 7... Nh5 {[%clk 0:02:51.4]} 8. Qb3+ {[%clk 0:02:56.8]}
8... e6 {[%clk 0:02:41.9]} 9. Bg5 {[%clk 0:01:30.7]} 9... Qe8 {[%clk 0:02:41.9]}
10. Nb5 {[%clk 0:01:22.6]} 10... Qd7 {[%clk 0:02:13.2]} 11. cxd6 {[%clk
0:01:05.2]} 11... cxd6 {[%clk 0:02:13.2]} 12. Rc1 {[%clk 0:01:02.1]} 12... Na6
{[%clk 0:01:52.8]} 13. Be2 {[%clk 0:00:42.1]} 13... h6 {[%clk 0:01:52.8]} 14.
Bh4 {[%clk 0:00:41.7]} 14... g5 {[%clk 0:01:52.7]} 15. Bg3 {[%clk 0:00:30.2]}
15... Nxg3 {[%clk 0:01:51.1]} 16. hxg3 {[%clk 0:00:30.5]} 16... Qe7 {[%clk
0:01:31.8]} 17. Nd2 {[%clk 0:00:26.5]} 17... Bd7 {[%clk 0:01:28]} 18. g4 {[%clk
0:00:26.5]} 18... Rac8 {[%clk 0:01:22.3]} 19. Rxc8 {[%clk 0:00:25.8]} 19... Rxc8
{[%clk 0:01:23.2]} 20. gxf5 {[%clk 0:00:24.6]} 20... Rc1+ {[%clk 0:00:56.9]} 21.
Bd1 {[%clk 0:00:24.5]} 21... Bxb5 {[%clk 0:00:50.9]} 22. Qxb5 {[%clk 0:00:23.2]}
22... e5 {[%clk 0:00:46.2]} 23. O-O {[%clk 0:00:19.7]} 23... Kh8 {[%clk
0:00:42.3]} 24. dxe5 {[%clk 0:00:16.5]} 24... Qxe5 {[%clk 0:00:32.2]} 25. Qxb7
{[%clk 0:00:15.8]} 25... Nc5 {[%clk 0:00:32.8]} 26. Qc8+ {[%clk 0:00:14.7]}
26... Kh7 {[%clk 0:00:32.3]} 27. Nf3 {[%clk 0:00:14.3]} 27... Qxb2 {[%clk
0:00:27.7]} 28. Qe8 {[%clk 0:00:14.1]} 28... Qf6 {[%clk 0:00:09.9]} 29. Nd4
{[%clk 0:00:14.4]} 29... Ne4 {[%clk 0:00:05.8]} 30. Qxe4 {[%clk 0:00:13.9]} 1-0